bitfinex/quotes_ETHUSD_20250518
["timestamp","ask_amount","ask_price","bid_price","bid_amount"]
[1747588098218,3.89029371,2570.5,2570.4,0.46547379]
[1747588100351,4.75279957,2570.5,2570.4,0.46547379]
[1747588100550,4.71579371,2570.5,2570.4,0.46547379]
[1747588100932,3.89080731,2570.2,2570.0,5.0]
[1747588101134,3.89057306,2570.4,2570.0,5.57861]
[1747588101332,3.89034337,2570.5,2570.0,5.57861]
[1747588101528,3.89019702,2570.6,2570.1,3.8908918]
[1747588101751,4.71537669,2570.8,2570.1,4.67691216]
[1747588102152,3.88999105,2570.7,2570.1,0.7861]
[1747588102358,3.88991242,2570.8,2570.2,4.79728653]
[1747588102521,3.88985845,2570.8,2570.2,0.90659494]
[1747588102858,3.88999105,2570.7,2570.2,4.79734129]
[1747588103357,3.88999105,2570.7,2570.2,0.90659494]
[1747588103560,3.89016227,2570.6,2570.2,0.90659494]
[1747588104120,3.89032866,2570.5,2570.2,0.90659494]
[1747588104658,0.03700586,2570.6,2570.1,0.7861]
[1747588104879,3.89067437,2570.3,2570.1,0.7861]
[1747588105054,8.7712,2570.8,2570.1,0.7861]
[1747588105260,3.8906755,2570.3,2570.1,0.7861]
[1747588105467,3.8907478,2570.2,2570.1,0.7861]
[1747588105810,3.89054209,2570.4,2570.1,0.7861]
[1747588106119,3.89054209,2570.4,2570.1,1.36471]
[1747588106677,0.7712,2570.8,2570.0,5.0]
[1747588106845,3.8908416,2570.2,2570.0,5.0]
[1747588107041,3.88999105,2570.7,2570.0,5.0]
[1747588107246,3.89074715,2570.3,2570.0,5.0]
[1747588107585,3.89074715,2570.3,2570.1,0.773]
[1747588108085,3.8907478,2570.2,2570.0,5.0]
[1747588108447,0.7712,2570.6,2570.0,5.0]
[1747588108647,3.89044506,2570.4,2570.0,5.0]
[1747588109147,3.89082583,2570.2,2570.0,5.0]
[1747588109345,3.89089918,2570.1,2570.0,5.0]
[1747588109742,3.89081494,2570.2,2570.0,5.0]
[1747588110175,3.89089918,2570.1,2570.0,5.0]
[1747588112879,29.67307645,2570.1,2570.0,4.36001914]
[1747588113086,29.63607059,2570.1,2570.0,4.36001914]
[1747588113689,13.42807059,2570.1,2570.0,4.36001914]
[1747588114096,29.63707059,2570.1,2570.0,4.36001914]
[1747588114493,13.42807059,2570.1,2570.0,4.36001914]
[1747588114898,5.42807059,2570.1,2570.0,4.36001914]
[1747588116623,3.89075929,2570.2,2570.0,10.37001914]
[1747588116815,3.89089918,2570.1,2570.0,11.14441914]
[1747588119508,3.89067583,2570.3,2570.0,11.14441914]
[1747588119839,3.89089918,2570.1,2570.0,11.14441914]
[1747588120038,3.89081715,2570.2,2570.0,11.14441914]
[1747588120538,3.89081715,2570.2,2570.1,6.01]
[1747588121634,3.89059675,2570.3,2570.1,6.01]
[1747588121840,8.9302,2570.8,2570.2,6.01]
[1747588121999,0.8192,2570.8,2570.3,6.01]
[1747588122200,3.89022242,2570.6,2570.3,6.01]
[1747588122445,3.89022242,2570.6,2570.4,0.7744]
[1747588122820,3.89029371,2570.5,2570.4,0.7744]
[1747588123146,3.89029371,2570.5,2570.4,6.01]
[1747588125183,3.89020165,2570.6,2570.4,6.01]
[1747588125342,3.88961058,2571.0,2570.5,9.90026055]
[1747588125547,3.88923459,2571.2,2570.6,0.8102]
[1747588125781,3.8896124,2571.0,2570.6,0.8102]
[1747588127694,3.88933456,2571.2,2570.7,3.88995674]
[1747588127899,3.88923925,2571.2,2570.6,0.8102]
[1747588128095,3.88938586,2571.1,2570.6,0.84909686]
[1747588128278,16.8,2571.3,2570.7,3.88985465]
[1747588128594,3.88930978,2571.2,2570.7,3.88985465]
[1747588128819,3.88930978,2571.2,2570.6,5.48902256]
[1747588128972,0.8214,2572.1,2571.3,0.8258]
[1747588129172,3.88835031,2571.8,2571.3,0.8258]
[1747588129374,3.88802488,2572.0,2571.3,0.8258]
[1747588129375,3.88848831,2571.7,2571.4,6.01]
[1747588130399,3.88854282,2571.7,2571.4,6.01]
[1747588131128,3.88824501,2571.9,2571.4,6.01]
[1747588131307,3.88824501,2571.9,2571.4,9.89890359]
[1747588131510,3.88818266,2571.9,2571.4,9.89890359]
[1747588131814,11.88791465,2572.1,2571.5,0.8258]
[1747588132020,3.88825682,2571.9,2571.5,0.8258]
[1747588132434,3.88825682,2571.9,2571.6,6.01]
[1747588132621,13.96804612,2572.1,2571.6,6.01]
[1747588132622,3.88847843,2571.7,2571.6,6.01]
[1747588133112,3.88834378,2571.8,2571.6,6.01]
[1747588133296,3.88802488,2572.0,2571.6,6.01]
[1747588133497,3.88802488,2572.0,2571.7,6.01]
[1747588133876,0.28868247,2572.7,2571.7,6.01]
[1747588133877,0.7973,2572.6,2571.8,0.79828179]
[1747588134083,3.88764533,2572.3,2571.9,6.01]
[1747588134406,3.88773961,2572.2,2571.9,6.01]
[1747588135377,3.88792643,2572.1,2571.9,6.01]
[1747588135602,3.88779156,2572.2,2571.9,6.01]
[1747588138522,3.92497228,2572.1,2572.0,6.01]
[1747588138723,3.88796642,2572.1,2572.0,6.01]
[1747588140322,3.88807108,2572.0,2571.8,0.7594]
[1747588140806,3.88783861,2572.2,2571.8,0.7594]
[1747588141007,3.8873932,2572.5,2571.8,4.64769209]
[1747588141209,0.7843,2572.9,2572.2,0.7655]
[1747588141412,0.7843,2572.9,2572.2,4.65311751]
[1747588141413,3.88677732,2572.9,2572.2,4.65311751]
[1747588141612,3.88715723,2572.6,2572.2,0.7655]
[1747588141938,8.0,2573.0,2572.2,3.88771013]
[1747588142093,3.8869877,2572.7,2572.3,0.7655]
[1747588142293,3.88724371,2572.6,2572.3,1.23081605]
[1747588142522,3.88737234,2572.5,2572.3,0.7655]
[1747588143094,3.88700513,2572.7,2572.3,0.7655]
[1747588143297,8.7843,2573.2,2572.3,0.7655]
[1747588143502,8.8723,2573.4,2572.5,4.65265964]
[1747588143704,4.67031489,2573.4,2572.6,8.077]
[1747588143909,3.88672307,2572.9,2572.5,0.7655]
[1747588144120,3.88621172,2573.2,2572.5,0.7655]
[1747588144327,3.88688234,2572.8,2572.5,0.7655]
[1747588145045,3.88711809,2572.6,2572.5,0.7655]
[1747588145242,3.88750288,2572.4,2571.9,0.7655]
[1747588145539,3.88750288,2572.4,2572.1,16.164]
[1747588145905,3.88760453,2572.3,2572.0,6.01]
[1747588146129,3.88748963,2572.4,2572.0,14.084]
[1747588146810,3.88758692,2572.3,2572.0,14.084]
[1747588147406,3.88747229,2572.4,2572.0,14.084]
[1747588147835,3.88729016,2572.5,2572.0,17.97200812]
[1747588148229,3.88742336,2572.4,2572.0,14.084]
[1747588149506,0.7843,2572.9,2572.2,3.88759607]
[1747588149704,3.88758226,2572.3,2572.1,8.8511]
[1747588150013,3.88741845,2572.5,2572.1,8.8511]
[1747588150406,3.88741845,2572.5,2572.2,6.01]
[1747588150947,3.88749159,2572.4,2572.2,6.01]
[1747588151110,3.88757143,2572.3,2572.2,6.01]
[1747588152348,3.88751336,2572.4,2572.2,6.01]
[1747588152650,3.88751336,2572.4,2572.2,6.68891]
[1747588152951,3.88716221,2572.6,2572.2,6.68891]
[1747588153110,3.8871067,2572.7,2572.2,6.68891]
[1747588153312,3.88715461,2572.6,2572.2,6.68891]
[1747588153512,3.26169,2573.0,2572.3,9.89748139]
[1747588153713,3.88689605,2572.8,2572.4,0.7685]
[1747588153913,3.88674124,2572.9,2572.4,4.65591427]
[1747588154262,0.7724,2573.0,2572.4,0.7685]
[1747588154969,3.8871896,2572.6,2572.4,0.7685]
[1747588156045,3.88690934,2572.8,2572.4,0.7685]
[1747588156220,3.88697773,2572.7,2572.4,1.83510585]
[1747588156425,3.88714296,2572.6,2572.4,1.83510585]
[1747588156644,3.88705605,2572.7,2572.4,1.83510585]
[1747588156847,3.88691351,2572.8,2572.4,1.83510585]
[1747588157029,3.88722188,2572.6,2572.4,0.7685]
[1747588157437,3.88703035,2572.7,2572.4,0.7685]
[1747588157748,3.88636275,2573.1,2572.4,0.7685]
[1747588158044,3.88734588,2572.5,2572.3,6.01]
[1747588158630,3.8874203,2572.4,2572.3,6.01]
[1747588159031,3.88734043,2572.5,2572.3,6.01]
[1747588159431,3.8874203,2572.4,2572.3,6.01]
[1747588160017,4.70863751,2572.6,2572.3,6.01]
[1747588160217,8.0,2572.9,2572.4,0.7916]
[1747588160417,3.88726919,2572.5,2572.4,0.7916]
[1747588161553,3.88726919,2572.5,2572.3,6.01]
[1747588161554,3.8874203,2572.4,2572.3,6.01]
[1747588162829,20.87392616,2572.4,2572.3,6.01]
[1747588163042,4.70967605,2571.9,2571.8,0.46547379]
[1747588164261,3.88848999,2571.7,2571.2,0.7916]
[1747588164645,3.88864741,2571.6,2571.2,0.7916]
[1747588165159,0.8215,2571.9,2571.2,0.7916]
[1747588165325,3.88879708,2571.5,2571.2,0.7916]
[1747588165522,4.7467969,2571.9,2571.2,0.7916]
[1747588165855,3.88904769,2571.4,2571.2,0.7916]
[1747588166057,3.88870785,2571.6,2571.2,0.7916]
[1747588166273,3.88858079,2571.7,2571.2,4.68077231]
[1747588166437,3.88829756,2571.9,2571.3,0.46807723]
[1747588166635,3.88803687,2572.0,2571.4,0.8056]
[1747588166827,3.88833197,2571.8,2571.4,0.8056]
[1747588167343,0.7833,2571.8,2571.3,0.46807723]
[1747588167549,3.88872902,2571.6,2571.2,0.8056]
[1747588167955,3.88895257,2571.4,2571.2,0.8056]
[1747588168343,3.88852914,2571.7,2571.2,0.8056]
[1747588168547,3.88881024,2571.5,2571.2,0.8056]
[1747588168763,0.7833,2571.8,2571.2,0.8056]
[1747588168970,3.88934172,2571.2,2571.0,1.27107379]
[1747588169169,3.88938586,2571.1,2571.0,1.27107379]
[1747588169377,3.88926317,2571.2,2571.0,1.27107379]
[1747588169864,3.88938586,2571.1,2571.0,1.27107379]
[1747588170763,3.88930359,2571.2,2571.0,0.8056]
[1747588171064,3.88938586,2571.1,2571.0,0.8056]
[1747588171962,3.88964918,2571.0,2570.8,0.8056]
[1747588172166,3.88968843,2570.9,2570.4,0.46547379]
[1747588172479,3.88987859,2570.8,2570.4,1.27107379]
[1747588172670,3.88953714,2571.0,2570.4,1.27107379]
[1747588173077,3.88996635,2570.8,2570.4,1.27107379]
[1747588173587,3.88996635,2570.8,2570.4,0.8056]
[1747588173789,3.8900212,2570.7,2570.4,0.8056]
[1747588174992,3.88963009,2571.0,2570.4,0.8056]
[1747588175249,3.89029371,2570.5,2570.4,0.8056]
[1747588175451,3.88998272,2570.8,2570.4,0.8056]
[1747588175671,3.88968843,2570.9,2570.4,0.8056]
[1747588175871,3.88976297,2570.9,2570.4,0.84449981]
[1747588176156,3.88953714,2571.0,2570.4,0.8056]
[1747588176355,3.88983998,2570.8,2570.4,0.8056]
[1747588176686,3.88961432,2571.0,2570.5,4.6914933]
[1747588176870,8.057,2571.3,2570.5,0.8012]
[1747588177075,3.88977703,2570.9,2570.5,0.8012]
[1747588177271,3.88949267,2571.1,2570.5,0.8012]
[1747588177500,3.88905443,2571.4,2570.7,4.69109552]
[1747588177651,3.88934921,2571.2,2570.7,0.8012]
[1747588178370,3.8893986,2571.1,2570.7,0.8012]
[1747588178971,3.88955544,2571.0,2570.7,0.8012]
[1747588179173,8.7518,2571.5,2570.8,6.01]
[1747588179494,3.88968843,2570.9,2570.8,6.01]
[1747588180697,3.88960143,2571.0,2570.8,6.01]
[1747588180893,16.055,2571.4,2570.8,6.01]
[1747588181199,3.8894716,2571.1,2570.8,6.01]
[1747588181410,3.88968843,2570.9,2570.8,6.01]
[1747588182518,3.88983973,2570.8,2570.7,6.01]
[1747588184282,3.88956304,2571.0,2570.6,0.8244]
[1747588184592,3.88956304,2571.0,2570.7,0.47145972]
[1747588184799,3.88956304,2571.0,2570.6,0.8244]
[1747588185105,3.88966669,2571.0,2570.6,0.8244]
[1747588185917,3.88923459,2571.2,2570.6,0.8244]
[1747588186415,3.89024107,2570.6,2570.3,16.84]
[1747588186804,3.89031962,2570.5,2570.3,16.84]
[1747588187011,3.89044506,2570.4,2570.3,16.04]
[1747588187404,3.89036121,2570.5,2570.3,16.04]
[1747588188000,3.89044506,2570.4,2570.3,16.04]
[1747588188723,3.89028602,2570.6,2570.3,16.04]
[1747588188927,8.051,2570.9,2570.3,16.04]
[1747588189133,3.89036664,2570.5,2570.3,16.04]
[1747588189483,3.89036664,2570.5,2570.4,6.01]
[1747588195327,11.94336664,2570.5,2570.4,6.01]
[1747588195629,4.68764506,2570.4,2570.3,6.01]
[1747588195828,12.73464506,2570.4,2570.3,6.01]
[1747588196024,15.59146058,2570.4,2570.3,6.01]
[1747588196496,23.64446058,2570.4,2570.3,6.01]
[1747588198639,3.89089918,2570.1,2570.0,4.36001914]
[1747588198824,4.66689918,2570.1,2570.0,4.36001914]
[1747588200067,19.99089918,2570.1,2570.0,4.36001914]
[1747588200238,3.89089918,2570.1,2570.0,4.36001914]
[1747588200439,3.89089918,2570.1,2570.0,5.39702105]
[1747588200621,3.89089918,2570.1,2570.0,4.36001914]
[1747588201134,4.66689918,2570.1,2570.0,4.36001914]
[1747588201300,20.71189918,2570.1,2570.0,4.36001914]
[1747588208249,3.89180774,2569.5,2569.4,0.20303955]
[1747588208450,21.57915644,2569.5,2569.4,0.20303955]
[1747588208659,3.89226218,2569.2,2569.1,6.01]
[1747588209926,12.72366218,2569.2,2569.1,6.01]
[1747588210553,3.89301981,2568.7,2568.6,6.01]
[1747588213774,4.72441981,2568.7,2568.6,6.01]
[1747588214169,4.72441981,2568.7,2568.1,6.01]
[1747588214170,4.71097774,2568.2,2568.1,6.01]
[1747588214469,12.74997774,2568.2,2568.1,6.01]
[1747588216230,20.74997774,2568.2,2568.1,6.01]
[1747588216467,3.89483933,2567.5,2567.4,6.01]
[1747588217034,3.93184519,2567.5,2567.4,6.01]
[1747588217231,3.89483933,2567.5,2567.4,6.01]
[1747588217437,11.89483933,2567.5,2567.4,6.01]
[1747588218571,11.93383933,2567.5,2567.4,6.01]
[1747588218985,3.89476238,2567.6,2567.4,6.01]
[1747588219189,8.038,2567.5,2567.4,6.01]
[1747588219578,11.93470921,2567.6,2567.4,6.01]
[1747588219887,8.038,2567.9,2567.5,10.68790529]
[1747588220098,8.038,2567.9,2567.5,6.7931]
[1747588220395,3.89451225,2567.8,2567.5,6.7931]
[1747588220884,11.93225885,2567.9,2567.5,6.7931]
[1747588221089,3.89381992,2568.2,2567.6,6.01]
[1747588221386,3.89387655,2568.2,2567.8,0.7831]
[1747588221589,3.89367039,2568.3,2567.9,6.01]
[1747588222153,17.5951,2568.9,2567.9,9.90412755]
[1747588222510,19.97096382,2568.8,2568.1,0.7831]
[1747588222708,3.89309581,2568.7,2568.1,4.67699864]
[1747588222996,3.89309581,2568.7,2568.1,5.7456985]
[1747588223203,3.89290962,2568.8,2568.1,5.74571117]
[1747588223505,3.89302872,2568.7,2568.2,3.89368471]
[1747588223672,3.89302872,2568.7,2568.1,5.74566236]
[1747588224586,11.92893716,2568.8,2568.2,3.89377073]
[1747588224904,11.92793716,2568.8,2568.2,11.46873083]
[1747588225207,8.035,2568.8,2568.2,6.01]
[1747588225352,3.89357465,2568.4,2568.2,6.01]
[1747588225997,3.89339928,2568.5,2568.2,6.01]
[1747588226306,8.034,2568.5,2568.2,6.01]
[1747588226511,3.89354745,2568.4,2568.2,6.01]
[1747588226814,3.89362613,2568.3,2568.2,6.01]
[1747588228404,3.89353997,2568.4,2568.2,6.01]
[1747588228973,3.89355234,2568.4,2568.2,6.01]
[1747588229721,3.89362613,2568.3,2568.2,6.01]
[1747588231428,3.89383571,2568.2,2567.8,6.8123]
[1747588231878,3.89350209,2568.4,2567.8,10.7066741]
[1747588231879,3.89370867,2568.3,2567.8,10.7066741]
[1747588232406,3.89387447,2568.2,2567.8,6.8123]
[1747588233405,3.89375324,2568.3,2567.8,10.70664223]
[1747588233710,3.89387156,2568.2,2567.8,6.8123]
[1747588233914,1.58286248,2568.2,2567.9,6.01]
[1747588234217,3.8940002,2568.1,2567.9,6.01]
[1747588234417,5.47668659,2568.2,2567.9,6.01]
[1747588234578,3.89407001,2568.1,2567.9,6.01]
[1747588235989,3.89408099,2568.0,2567.9,6.01]
[1747588237634,3.89400065,2568.1,2567.9,6.01]
[1747588237816,3.89386735,2568.2,2567.9,6.01]
[1747588237977,3.89368746,2568.3,2567.9,6.01]
[1747588238178,3.89393068,2568.1,2567.9,6.01]
[1747588238380,3.89408099,2568.0,2567.9,6.01]
[1747588239013,3.89399839,2568.1,2567.9,6.01]
[1747588239219,3.89393053,2568.1,2567.9,6.01]
[1747588241416,3.89399371,2568.1,2567.9,6.01]
[1747588243430,5.89034989,2568.3,2568.0,6.01]
[1747588243590,4.68323181,2568.7,2568.0,6.01]
[1747588243591,8.041,2568.4,2568.0,6.01]
[1747588243793,19.95655633,2568.4,2568.1,0.8192]
[1747588244394,3.8936557,2568.3,2568.1,0.8192]
[1747588245624,11.93452163,2568.4,2568.1,0.8192]
[1747588245791,3.89367856,2568.3,2568.1,0.8192]
[1747588246719,3.89387924,2568.2,2568.0,6.01]
[1747588246943,3.8936899,2568.3,2568.0,6.01]
[1747588247238,11.91337946,2568.5,2568.0,9.90407978]
[1747588247388,11.91337946,2568.5,2568.1,0.8192]
[1747588247732,3.89347978,2568.4,2568.1,0.8192]
[1747588249439,3.89347978,2568.4,2568.2,6.01]
[1747588249822,3.8934073,2568.5,2568.2,6.01]
[1747588250046,3.89347633,2568.4,2568.2,6.01]
[1747588250399,3.89362613,2568.3,2568.2,6.01]
[1747588251119,3.89347633,2568.4,2568.2,6.01]
[1747588251333,3.89335594,2568.5,2568.2,6.01]
[1747588251631,3.89344852,2568.5,2568.2,6.01]
[1747588251792,3.89332295,2568.5,2568.2,6.01]
[1747588251999,3.89358972,2568.4,2568.2,6.01]
[1747588252305,3.89362613,2568.3,2568.2,6.01]
[1747588255798,4.78666454,2568.3,2568.2,6.3819097]
[1747588255997,4.74965868,2568.3,2568.2,6.3819097]
[1747588256863,11.90562613,2568.3,2568.2,6.3819097]
[1747588257468,3.89297939,2568.8,2568.2,6.3819097]
[1747588257617,17.5782,2568.9,2568.3,0.03893215]
[1747588257618,3.89301981,2568.7,2568.3,0.03893215]
[1747588257822,3.89306198,2568.7,2568.4,6.01]
[1747588258037,29.48196069,2568.9,2568.4,6.01]
[1747588258232,3.8930983,2568.7,2568.5,6.01]
[1747588258420,24.816,2568.9,2568.5,6.01]
[1747588258623,3.8930555,2568.7,2568.6,0.7927]
[1747588259428,24.816,2568.9,2568.6,0.7927]
[1747588259840,3.89301981,2568.7,2568.6,0.7927]
[1747588260028,3.89317137,2568.6,2568.5,6.01]
[1747588260346,4.70427137,2568.6,2568.5,6.01]
[1747588260752,4.70427137,2568.6,2568.1,6.01]
[1747588260753,3.89377774,2568.2,2568.1,6.01]
[1747588261531,4.70487774,2568.2,2568.1,6.01]
[1747588262566,4.7418836,2568.2,2568.1,6.01]
[1747588262741,4.7418836,2568.2,2567.8,6.01]
[1747588262742,3.89423264,2567.9,2567.8,6.01]
[1747588263256,20.7613385,2567.9,2567.8,6.01]
[1747588263443,20.72433264,2567.9,2567.8,6.01]
[1747588263996,28.73033264,2567.9,2567.8,6.01]
[1747588265464,28.72933264,2567.9,2567.8,6.01]
[1747588265665,32.38106895,2567.9,2567.8,6.01]
[1747588266615,23.55096895,2567.9,2567.8,6.01]
[1747588266883,11.89823264,2567.9,2567.8,6.01]
[1747588268270,3.89423264,2567.9,2567.8,6.01]
[1747588268472,11.89723264,2567.9,2567.8,6.01]
[1747588269994,20.72193264,2567.9,2567.8,6.01]
[1747588271181,3.89499104,2567.4,2567.3,6.01]
[1747588271382,11.89599104,2567.4,2567.3,6.01]
[1747588271945,3.89514275,2567.3,2567.2,0.0333]
[1747588273253,8.8257,2567.6,2567.2,0.0333]
[1747588273448,3.89514275,2567.3,2567.2,0.0333]
[1747588274564,3.89486849,2567.5,2567.2,0.8647]
[1747588274887,3.89486849,2567.5,2567.3,6.01]
[1747588274888,3.89503221,2567.4,2567.3,6.01]
[1747588276961,3.89484054,2567.5,2567.3,6.01]
[1747588277163,0.7892,2568.1,2567.3,6.69747]
[1747588277369,8.7872,2568.1,2567.5,0.8314]
[1747588277587,3.89425232,2567.9,2567.5,0.8314]
[1747588277759,3.89425232,2567.9,2567.6,6.01]
[1747588278101,3.89441148,2567.8,2567.6,7.08752937]
[1747588278268,3.89453596,2567.7,2567.6,6.01]
[1747588282998,3.89443602,2567.8,2567.6,6.01]
[1747588283488,3.89416995,2568.0,2567.7,0.8314]
[1747588283652,3.89416995,2568.0,2567.8,6.01]
[1747588283653,3.89423051,2568.0,2567.8,6.01]
[1747588283855,11.88683265,2568.2,2567.9,6.01]
[1747588284087,11.89167831,2568.3,2567.7,0.8314]
[1747588284088,3.89370193,2568.3,2567.8,6.01]
[1747588284291,7.993,2568.3,2568.0,0.7757]
[1747588284471,3.89408279,2568.0,2567.8,6.7857]
[1747588285160,3.89423264,2567.9,2567.8,6.7857]
[1747588285556,8.66063414,2568.3,2567.8,6.7857]
[1747588285760,3.89423264,2567.9,2567.8,6.7857]
[1747588286289,3.89414841,2568.0,2567.8,7.46427]
[1747588286803,11.89414841,2568.0,2567.9,6.01]
[1747588286994,11.89436888,2567.9,2567.4,6.01]
[1747588287606,7.989,2568.1,2567.7,3.89443732]
[1747588287771,4.65547411,2568.5,2567.8,9.90429136]
[1747588288094,3.89341333,2568.5,2567.9,0.7542]
[1747588288300,3.89341333,2568.5,2568.0,6.01]
[1747588288473,3.89294313,2568.8,2568.1,0.7831]
[1747588288669,3.89282942,2568.9,2568.2,9.94264007]
[1747588288974,3.89282942,2568.9,2568.2,9.90374969]
[1747588288975,3.89299341,2568.8,2568.2,9.90374969]
[1747588289306,8.7682,2569.0,2568.3,7.07868497]
[1747588289472,3.89288315,2568.8,2568.4,0.7831]
[1747588289668,12.66078618,2569.0,2568.4,0.7831]
[1747588289669,3.892791,2568.9,2568.4,0.7831]
[1747588290695,8.7802,2569.2,2568.3,7.07868497]
[1747588290696,0.7802,2569.5,2568.6,0.7831]
[1747588290874,7.987,2569.3,2568.8,3.89275185]
[1747588291076,7.987,2569.3,2568.8,3.89278835]
[1747588291294,0.7802,2569.5,2568.9,9.90266027]
[1747588291499,3.89207275,2569.4,2569.0,6.01]
[1747588291977,19.87480896,2569.5,2569.1,6.7931]
[1747588292198,3.89195921,2569.4,2569.1,6.7931]
[1747588292504,3.89213823,2569.3,2569.1,6.7931]
[1747588292674,3.89220685,2569.3,2569.1,6.7931]
[1747588292876,3.89201825,2569.4,2569.1,6.7931]
[1747588293301,15.983,2569.5,2569.1,6.7931]
[1747588293502,3.89226218,2569.2,2569.1,6.7931]
[1747588293810,3.89201952,2569.4,2569.1,6.7931]
[1747588294190,3.8921114,2569.3,2569.1,6.7931]
[1747588295411,3.89226218,2569.2,2569.1,6.01]
[1747588295708,11.87388838,2569.5,2569.1,6.611]
[1747588295923,3.89226218,2569.2,2569.1,6.01]
[1747588296277,8.0,2569.1,2568.3,0.46547379]
[1747588296477,15.976,2569.0,2568.3,0.46547379]
[1747588296707,15.975,2568.9,2568.3,4.35900266]
[1747588296911,3.89255547,2569.1,2568.5,0.7687]
[1747588297210,3.89231003,2569.2,2568.6,3.89308089]
[1747588297420,3.89231003,2569.2,2568.7,3.89298322]
[1747588297603,3.89244219,2569.1,2568.6,3.89312853]
[1747588297800,3.89217976,2569.3,2568.6,3.89317137]
[1747588298001,15.98,2569.5,2568.8,0.7687]
[1747588298321,3.89239129,2569.2,2568.8,0.7687]
[1747588299209,3.89250386,2569.1,2568.8,0.7687]
[1747588299411,3.89264186,2569.0,2568.8,0.7687]
[1747588300191,15.98,2569.5,2568.8,0.7687]
[1747588300392,7.977,2569.4,2569.0,3.89255338]
[1747588300694,3.89181574,2569.5,2569.1,1.15795534]
[1747588300886,3.89181574,2569.5,2569.1,0.7687]
[1747588301277,16.817,2569.6,2568.6,7.994]
[1747588301483,0.7656,2569.4,2568.7,0.7687]
[1747588301686,3.89254195,2569.1,2568.7,0.7687]
[1747588302119,0.7656,2569.4,2568.7,0.7687]
[1747588302120,3.89211069,2569.3,2568.7,0.7687]
[1747588302310,3.89279043,2568.9,2568.7,0.7687]
[1747588302615,3.89249899,2569.1,2568.7,0.7687]
[1747588303221,16.817,2569.6,2568.7,0.7687]
[1747588303439,11.88617107,2569.3,2568.7,0.7687]
[1747588303585,11.88617107,2569.3,2568.7,4.66156927]
[1747588303780,11.88617107,2569.3,2568.8,0.85546232]
[1747588304184,3.89226361,2569.2,2568.8,0.85546232]
[1747588304420,11.88617516,2569.3,2568.8,0.85546232]
[1747588304617,11.88617516,2569.3,2568.8,4.74831831]
[1747588304824,3.89217516,2569.3,2568.8,4.74831831]
[1747588305027,11.86603149,2569.4,2568.9,0.55170183]
[1747588305194,20.70869363,2569.6,2569.0,0.8195]
[1747588305394,3.89209141,2569.4,2569.0,0.8195]
[1747588305588,3.89222316,2569.3,2569.0,0.8195]
[1747588305790,3.89195921,2569.4,2569.0,0.8195]
[1747588305994,3.89256921,2569.0,2568.5,20.6797345]
[1747588306204,3.89274119,2568.9,2568.5,0.8195]
[1747588306404,8.7863,2569.5,2568.6,3.89310107]
[1747588306622,3.89238154,2569.2,2568.6,3.8930761]
[1747588306804,3.89252743,2569.1,2568.6,3.8930761]
[1747588307000,3.89233856,2569.2,2568.7,0.47125761]
[1747588307210,3.89243045,2569.1,2568.8,0.8195]
[1747588308590,3.8926632,2569.0,2568.8,0.8195]
[1747588309123,3.89271672,2568.9,2568.8,0.8195]
[1747588309318,3.89262328,2569.0,2568.8,0.8195]
[1747588309522,3.89271672,2568.9,2568.8,0.8195]
[1747588309724,3.89249262,2569.1,2568.8,0.8195]
[1747588310133,3.8921235,2569.3,2568.8,4.71229583]
[1747588310335,16.817,2569.6,2569.0,0.771]
[1747588310509,7.971,2569.7,2569.0,0.771]
[1747588310709,7.971,2569.7,2569.2,3.89226218]
[1747588311014,7.971,2569.7,2569.3,0.771]
[1747588311323,3.89189013,2569.5,2569.3,0.771]
[1747588311725,3.89195921,2569.4,2569.3,0.771]
[1747588311914,3.89187439,2569.5,2569.3,0.771]
[1747588312700,3.89195921,2569.4,2569.3,0.771]
[1747588313318,3.89187381,2569.5,2569.3,0.771]
[1747588313528,3.89118281,2570.0,2569.3,0.771]
[1747588313529,7.968,2570.0,2569.4,6.01]
[1747588313803,7.968,2570.0,2569.3,0.771]
[1747588313804,3.89165628,2569.6,2569.5,6.01]
[1747588314440,3.89180774,2569.5,2569.4,6.01]
[1747588314634,3.89172635,2569.6,2569.4,6.01]
[1747588314839,3.89180774,2569.5,2569.4,6.01]
[1747588315451,3.89176177,2569.6,2569.4,6.01]
[1747588315742,3.89180774,2569.5,2569.4,6.01]
[1747588315936,3.89173604,2569.6,2569.4,6.01]
[1747588316243,3.89158107,2569.7,2569.4,6.01]
[1747588316443,3.89166934,2569.6,2569.4,6.01]
[1747588316836,3.8915266,2569.7,2569.4,6.01]
[1747588316837,3.89180774,2569.5,2569.4,6.01]
[1747588317410,3.89171074,2569.6,2569.4,6.01]
[1747588318307,3.89167428,2569.6,2569.5,6.01]
[1747588320326,20.59488296,2570.0,2569.5,7.395]
[1747588320327,3.89127363,2569.9,2569.5,7.395]
[1747588320531,20.69955851,2570.4,2569.6,6.01]
[1747588320532,24.779,2570.4,2569.6,6.01]
[1747588320727,3.88901392,2571.4,2570.8,3.8897428]
[1747588320938,0.8196,2571.7,2570.9,1.17297428]
[1747588321140,3.88903255,2571.4,2570.9,1.17297428]
[1747588321351,3.88903255,2571.4,2570.9,0.784]
[1747588321551,3.88953714,2571.0,2570.9,0.784]
[1747588321952,3.88949462,2571.1,2570.5,0.784]
[1747588322155,3.88970478,2570.9,2570.5,0.784]
[1747588322538,3.88938586,2571.1,2570.5,0.784]
[1747588322731,5.09792445,2571.1,2570.5,0.784]
[1747588322931,3.88985809,2570.8,2570.5,0.784]
[1747588323956,3.89004271,2570.7,2570.5,0.784]
[1747588324132,0.8196,2571.1,2570.5,0.784]
[1747588324133,3.89014237,2570.6,2570.5,0.784]
[1747588325556,3.88977121,2570.9,2570.5,1.6592]
[1747588325743,0.8196,2571.1,2570.5,1.6592]
[1747588325744,3.89014237,2570.6,2570.5,0.784]
[1747588326345,3.88970897,2570.9,2570.5,0.784]
[1747588326542,3.88956651,2571.0,2570.5,0.784]
[1747588326859,3.88953714,2571.0,2570.5,0.784]